Cogmind - Beta 11 X7 @@@ ROGUE MODE // 2021.09.26 @ 16:23:42 Player: LU-1G1 Result: Destroyed by Y-45 Defender with Heavy Assault Rifle Performance ------------- Evolutions (1) 500 Regions Visited (3) 600 Robots Destroyed (74) 370 Value Destroyed (1598) 1598 Prototype IDs (3) 60 Alien Tech Used (0) 0 Bonus (42) 42 TOTAL SCORE: 3170 Bonus ------- High Alert Combat Kills 8 Follower Combat Kills 85 Friendly Fire -51 Cogmind --------- Core Integrity 0/400 Matter 300/300 Energy 259/265 System Corruption 4% Temperature Cool (12) Movement Treading (160) Location -9/Materials Parts ------- > --- POWER (1) -------- Improved Ion Engine > --- PROPULSION (3) --- Light Treads Light Treads Light Treads > --- UTILITY (3) ------ Cooling System Large Storage Unit Armor Integrity Analyzer > --- WEAPON (2) ------- Mini Grenade Launcher Ripper > --- INVENTORY (15) --- Cooled Ion Engine Small Storage Unit Huge Storage Unit High-capacity Matter Pod (200) Structural Scanner Light Armor Plating Hacking Suite EM Pulse Gun Heavy Assault Rifle Mini Grenade Launcher Plasma Cutter Plasma Cutter Plasma Cutter Plasma Cutter Mace Peak State ------------ > --- POWER ------------ Cooled Ion Engine > --- PROPULSION ------- Light Treads Light Treads Improved Treads > --- UTILITY ---------- Heat Sink Large Storage Unit Armor Integrity Analyzer > --- WEAPON ----------- Improved EM Shotgun Ripper > --- INVENTORY -------- Cooled Ion Engine Compact Wheel Small Storage Unit Huge Storage Unit High-capacity Matter Pod Structural Scanner Hacking Suite EM Pulse Gun Heavy Assault Rifle Grenade Launcher Plasma Cutter Plasma Cutter Plasma Cutter Plasma Cutter Mace [Rating: 20] Favorites ----------- Power Ion Engine Engine Ion Engine Propulsion Light Treads Treads Light Treads Leg Aluminum Leg Wheel Compact Wheel Utility Large Storage Unit Device Heat Sink Storage Large Storage Unit Processor Armor Integrity Analyzer Protection Light Armor Plating Weapon Assault Rifle Energy Gun Small Laser Ballistic Gun Assault Rifle Launcher Mini Grenade Launcher Slashing Weapon Ripper Build | -11 -10 -10 -9 ------- Run | Scr Mat Min Mat Slots Evolved 2 | . . . 2 Power . | . . . . Propulsion 1 | . . . 1 Utility 1 | . . . 1 Weapon . | . . . . Parts Attached 52 | 7 19 5 21 Power 7 | 1 3 . 3 Engine 7 | 1 3 . 3 Core . | . . . . Reactor . | . . . . Propulsion 21 | 2 6 2 11 Treads 10 | 2 . . 8 Leg 3 | . 3 . . Wheel 8 | . 3 2 3 Hover . | . . . . Flight . | . . . . Utility 13 | 2 6 2 3 Device 3 | 1 . . 2 Storage 5 | 1 4 . . Processor 3 | . 2 . 1 Hackware . | . . . . Protection 2 | . . 2 . Artifact . | . . . . Weapon 11 | 2 4 1 4 Energy Gun 2 | . 1 . 1 Energy Cannon . | . . . . Ballistic Gun 4 | 2 2 . . Ballistic Cannon . | . . . . Launcher 4 | . 1 . 3 Special Weapon . | . . . . Impact Weapon . | . . . . Slashing Weapon 1 | . . 1 . Piercing Weapon . | . . . . Special Melee Weapon . | . . . . Unidentified Prototypes 3 | . . . 3 Parts Lost 18 | . 9 1 8 Power 2 | . 1 . 1 Propulsion 9 | . 4 1 4 Utility 2 | . 1 . 1 Weapon 5 | . 3 . 2 Highest Loss Streak 5 | . 3 1 5 Average Slot Usage (%) 92 | . 93 100 90 Engine 11 | . 13 14 8 Treads 17 | . 13 . 25 Leg 1 | . 4 . . Wheel 10 | . 9 28 6 Device 4 | . 2 . 6 Storage 12 | . 14 14 11 Processor 7 | . 9 . 6 Protection 2 | . . 13 2 Energy Gun 3 | . 4 4 2 Ballistic Gun 8 | . 21 . . Launcher 5 | . . 14 8 Slashing Weapon 6 | . . 9 11 Naked Turns . | . . . . Heaviest Build 37 | 15 30 34 37 Greatest Support 63 | 40 40 26 63 Greatest Overweight (x) 8 | . 8 1 1 Average Overweight (x) . | . . 1 . Largest Inventory Capacity 25 | 8 25 15 15 Average Capacity 14 | 7 14 15 15 Most Carried 15 | 4 15 15 15 Average Carried 12 | 2 10 14 14 Final Capacity 15 | 8 15 15 15 Final Carried 15 | 4 15 15 15 Class Distribution -------------------- 80% | Mutant 19% | Scavenger-Mutant Dominant Class ---------------- Mutant | -10/Materials Mutant | -10/Mines Mutant | -9/Materials Resources | -11 -10 -10 -9 ----------- Run | Scr Mat Min Mat Matter Collected 1571 | 285 687 221 378 Remotely 208 | 180 28 . . Salvage Created 2680 | 100 919 117 1544 Parts 149 | 2 61 5 81 Haulers Intercepted 4 | . . . 4 Recyclers Shooed 5 | . 3 . 2 Parts Field Recycled . | . . . . Retrieved Matter . | . . . . Parts Self-Destructed . | . . . . Prevented . | . . . . Kills | -11 -10 -10 -9 ------- Run | Scr Mat Min Mat Combat Hostiles Destroyed 48 | . 20 3 25 Melee 15 | . . . 15 Guns 21 | . 17 . 4 AOE 12 | . 3 3 6 Classes Destroyed 10 | 1 5 . 4 Worker 5 | . 1 1 3 Tunneler 1 | . . . 1 Hauler 4 | . . . 4 Recycler 10 | 1 2 1 6 Mechanic 1 | . . . 1 Operator 1 | . 1 . . Watcher 4 | . 3 . 1 Swarmer 13 | . 3 3 7 Grunt 29 | . 17 . 12 Sentry 6 | . . . 6 Best Kill Streak 11 | 1 3 3 11 Combat Bots Only 10 | . 3 2 10 Max Kills in Single Turn 3 | 1 1 1 3 Gunslinging . | . . . . Exploded 3 | . 1 1 3 Melee 1 | . . . 1 Uniques/NPCs Destroyed . | . . . . Combat | -11 -10 -10 -9 -------- Run | Scr Mat Min Mat Damage Taken 2971 | . 1225 97 1649 Core 628 | . 208 15 405 Absorbed by Shields . | . . . . Core Remaining (%) 55 | 100 . 10 . Volleys Fired 139 | 3 116 3 17 Largest 2 | 2 2 1 1 Hottest 60 | 40 60 30 45 Shots Fired 223 | 5 199 3 16 Gun 209 | 5 196 . 8 Cannon . | . . . . Launcher 14 | . 3 3 8 Special . | . . . . Kinetic 191 | 5 186 . . Thermal 10 | . 10 . . Explosive 14 | . 3 3 8 Electromagnetic 8 | . . . 8 Robot Hit Streak 13 | 1 13 . 10 Robot Miss Streak 4 | 2 4 . 1 Penetration Max . | . . . . Secondary Targets 2 | . 2 . . Max Gunslinging Chain 1 | . 1 . . Shots Hit Robots 223 | 2 135 4 82 Core Hits 104 | 1 52 6 45 Critical Kills . | . . . . Critical Parts Destroyed 1 | . 1 . . Critical Strikes 2 | . 1 . 1 Destroy 1 | . 1 . . Sever 1 | . . . 1 Melee Attacks 82 | . . 5 77 Impact . | . . . . Slashing 82 | . . 5 77 Piercing . | . . . . Sneak Attacks 24 | . . 4 20 Combat Hostiles . | . . . . Follow-up Attacks . | . . . . Damage Inflicted 6888 | 25 1724 543 4596 Guns 1741 | 25 1604 . 112 Cannons . | . . . . Explosions 938 | . 113 112 713 Melee 4202 | . . 431 3771 Ramming 7 | . 7 . . Kinetic 1530 | 25 1505 . . Thermal 99 | . 99 . . Explosive 938 | . 113 112 713 Electromagnetic 112 | . . . 112 Impact . | . . . . Slashing 4202 | . . 431 3771 Piercing . | . . . . Highest Corruption 4 | . . . 4 Average Corruption 3 | . . . 3 Corruption Purged . | . . . . Effects 27 | . . . 27 Message Errors 8 | . . . 8 Matter Fused 7 | . . . 7 Heat Flow Errors 2 | . . . 2 Energy Discharges 5 | . . . 5 Data Loss (minor) 4 | . . . 4 Weapon Failures 1 | . . . 1 Overload Shots . | . . . . Overflow Damage 929 | . 11 109 809 Projectiles . | . . . . Explosions 11 | . 11 . . Melee 918 | . . 109 809 Knockbacks . | . . . . Impact . | . . . . Kinetic . | . . . . Secondary . | . . . . Self-Inflicted Damage 98 | . 40 . 58 Shots 4 | . 1 . 3 Rammed 1 | . 1 . . Targets Rammed 1 | . 1 . . Kicked . | . . . . Crushed . | . . . . Highest Temperature 180 | . 30 . 180 Average Temperature 19 | . 10 . 69 Received Heat Transfer 1047 | . 639 . 408 Siege Activations . | . . . . Robots Corrupted . | . . . . Combat Hostiles . | . . . . Parts Fried 1 | . . . 1 Impact Corruptions . | . . . . Robots Melted . | . . . . Combat Hostiles . | . . . . Parts Melted 2 | . . . 2 Heat Transferred 225 | . 225 . . Parts Sabotaged . | . . . . Parts Stolen . | . . . . Parts Stripped . | . . . . Power Chain Reactions . | . . . . Missiles Intercepted . | . . . . Alert | -11 -10 -10 -9 ------- Run | Scr Mat Min Mat Peak Influence 421 | 5 234 233 421 Initial 90 | . 3 54 90 Average 172 | 1 112 176 234 Maximum Alert Level 2 | . 1 1 2 Low Security (%) 65 | 100 97 33 43 Level 1 25 | . 2 66 36 Level 2 8 | . . . 19 Level 3 . | . . . . Level 4 . | . . . . Level 5 . | . . . . High Security . | . . . . Max Security . | . . . . Squads Dispatched 9 | . 6 . 3 Investigation 8 | . 5 . 3 Extermination . | . . . . Reinforcement 1 | . 1 . . Assault . | . . . . Garrison . | . . . . Intercept . | . . . . Construction Impeded . | . . . . Haulers Reinforced . | . . . . Active Scanning Responses . | . . . . Cargo Convoy Interrupts . | . . . . Stealth | -11 -10 -10 -9 --------- Run | Scr Mat Min Mat Distress Signals 4 | . . 1 3 Communications Jammed . | . . . . Distress Signals . | . . . . Times Spotted 76 | . 33 6 37 Peak Tracking Total 6 | . 4 3 6 Tactical Retreats 3 | . 2 . 1 Traps | -11 -10 -10 -9 ------- Run | Scr Mat Min Mat Traps Triggered 2 | . 2 . . Indirectly . | . . . . Trap Hack Attempts . | . . . . Triggered . | . . . . Disarmed . | . . . . Reprogrammed . | . . . . Reused . | . . . . Traps Extracted . | . . . . Installed 5 | . . 5 . Triggered . | . . . . Machines | -11 -10 -10 -9 ---------- Run | Scr Mat Min Mat Machines Disabled . | . . . . Max in Single Turn . | . . . . Machines Sabotaged . | . . . . Garrisons Compromised . | . . . . Overloaded Fab Kills . | . . . . Fab Network Shutdowns . | . . . . Hacking | -11 -10 -10 -9 --------- Run | Scr Mat Min Mat Machines Accessed 17 | . 8 . 9 Terminals 10 | . 5 . 5 Fabricators . | . . . . Repair Stations 2 | . 1 . 1 Recycling Units 4 | . 2 . 2 Scanalyzers 1 | . . . 1 Garrison Access . | . . . . Total Hacks 37 | . 16 . 21 Successful 14 | . 5 . 9 Failed 23 | . 11 . 12 Catastrophic 6 | . 5 . 1 Database Lockouts . | . . . . Manual 25 | . 14 . 11 Terminals 27 | . 13 . 14 Fabricators . | . . . . Repair Stations 4 | . 1 . 3 Recycling Units 4 | . 2 . 2 Scanalyzers 2 | . . . 2 Garrison Access . | . . . . Terminal Hacks 6 | . 2 . 4 Part Schematic 2 | . 1 . 1 Branch Access Points 1 | . . . 1 Hauler Manifests 2 | . 1 . 1 Zone Layout 1 | . . . 1 Fabricator Hacks . | . . . . Repair Station Hacks 2 | . . . 2 Scan Component 1 | . . . 1 Repair 1 | . . . 1 Recycling Unit Hacks . | . . . . Scanalyzer . | . . . . Garrison Access Hacks . | . . . . Unauthorized Hacks 6 | . 3 . 3 Terminals 1 | . . . 1 Disrupt 1 | . . . 1 Fabricators . | . . . . Repair Stations 1 | . 1 . . Mechanics 1 | . 1 . . Recycling Units 4 | . 2 . 2 Tunnel 4 | . 2 . 2 Scanalyzers . | . . . . Garrison Access . | . . . . Data Cores Recovered . | . . . . Used . | . . . . Hacking Detections 12 | . 5 . 7 Full Trace Events 8 | . 5 . 3 Feedback Events 1 | . . . 1 Corruption 1 | . . . 1 Feedback Blocked . | . . . . Robot Schematics Acquired . | . . . . Robots Built . | . . . . Matter . | . . . . Time . | . . . . Total Robot Build Rating . | . . . . Part Schematics Acquired 2 | . 1 . 1 Parts Built . | . . . . Matter . | . . . . Time . | . . . . Total Part Build Rating . | . . . . Parts Repaired 1 | . . . 1 Time 26 | . . . 26 Parts Recycled . | . . . . Recycled Matter . | . . . . Retrieved Matter . | . . . . Retrieved Components . | . . . . Parts Scanalyzed . | . . . . Part Schematics Acquired . | . . . . Parts Damaged . | . . . . Bothacking | -11 -10 -10 -9 ------------ Run | Scr Mat Min Mat Used RIF Installer . | . . . . Robots Hacked . | . . . . Non-combat . | . . . . Combat . | . . . . Robot Hacks Applied . | . . . . Relay Couplers Released . | . . . . Robots Rewired . | . . . . Allies Hacked . | . . . . Hacks Repelled . | . . . . Allies | -11 -10 -10 -9 -------- Run | Scr Mat Min Mat Total Allies 3 | . . 3 . Largest Group 3 | . . 3 2 Highest-Rated Group 40 | . . 40 24 Highest-Rated Ally 16 | . . 16 16 Total Orders . | . . . . Ally Attacks 30 | . . 23 7 Total Damage 230 | . . 145 85 Kills 6 | . . 5 1 Allies Corrupted . | . . . . Allies Melted . | . . . . Intel | -11 -10 -10 -9 ------- Run | Scr Mat Min Mat Robot Analysis Total . | . . . . Derelict Logs Recovered 1 | . . 1 . Drone Launches . | . . . . Drone Recoveries . | . . . . Exploration | -11 -10 -10 -9 ------------- Run | Scr Mat Min Mat Turns Passed 3379 | 76 1383 386 1534 Spaces Moved 1713 | 36 619 308 750 Core 6 | 3 3 . . Treads 998 | 33 286 . 679 Legs 97 | . 97 . . Wheels 612 | . 233 308 71 Hover . | . . . . Flight . | . . . . Fastest Speed 50 | 50 90 105 100 Average Speed 148 | 150 156 105 158 Slowest Speed 450 | 160 450 105 260 Overloaded Moves . | . . . . Propulsion Burnouts . | . . . . Robots Hopped . | . . . . Cave-ins Triggered 1 | . . . 1 Exploration Rate (%) 49 | 4 86 63 46 Regions Visited 3 Branch Regions 1 Pre-discovered Areas 4 | . 2 . 2 Known Exits Taken . | . . . . Unknown Exits Taken 3 | 1 1 1 . Scrap Searched 1 | . . 1 . Spaces Dug 1 | . . . 1 Terrain Destroyed 61 | . 18 15 28 Melee 1 | . . . 1 Projectile . | . . . . AOE 60 | . 18 15 27 Terrain Rammed . | . . . . Walls Destroyed . | . . . . Machines Disabled . | . . . . Actions | -11 -10 -10 -9 --------- Run | Scr Mat Min Mat Total 2211 | 49 833 361 968 Wait 168 | . 60 29 79 Move 1710 | 35 618 307 750 Hop . | . . . . Pick Up 27 | 4 12 3 8 Fast Attach 32 | 7 9 2 14 Attach 8 | . 3 2 3 Detach 1 | . . . 1 Swap 12 | . 7 1 4 Drop 26 | . 7 4 15 Fire 139 | 3 116 3 17 Melee 82 | . . 5 77 Ram 1 | . 1 . . Kick . | . . . . Crush . | . . . . Escape Stasis . | . . . . Rewire . | . . . . Trap 5 | . . 5 . Miscellaneous . | . . . . Route ------- -11/Scrapyard -10/Materials (discovered 4 exits: *Mat x3 / [*Min]) -10/Mines -9/Materials (discovered 3 exits: [*Mat] / Min x2) History --------- Turn | Location | Event 4 | -11/Scrapyard | Discovered new exit (range 15) 77 | -11/Scrapyard | Entered Materials 286 | -10/Materials | Discovered new exit (range 16) 311 | -10/Materials | Build established: Mutant 693 | -10/Materials | Discovered new exit (range 5) 773 | -10/Materials | Lost 3 parts (2n1w) 861 | -10/Materials | Core integrity fell below 50% 963 | -10/Materials | Discovered new exit (range 15) 1236 | -10/Materials | Discovered new exit (range 6) 1394 | -10/Materials | Core integrity fell below 20% 1460 | -10/Materials | Entered Mines 1466 | -10/Mines | Assisted by bots powering up and referring to "LRC-V3" 1480 | -10/Mines | Learned Materials security intel 1581 | -10/Mines | A weapon hastily lodged in a ceiling crevice suddenly fell to the ground 1616 | -10/Mines | Assembled infested the area 1680 | -10/Mines | Found a hidden stash of uninstalled traps 1821 | -10/Mines | Discovered new exit (range 15) 1846 | -10/Mines | Entered Materials 1846 | -9/Materials | Accompanied by 2 allies 1846 | -9/Materials | Evolved 2 slots: Propulsion x1, Utility x1 1902 | -9/Materials | Repaired Grenade Launcher 1926 | -9/Materials | Crushed by falling debris 2013 | -9/Materials | Identified exit to Mines 2199 | -9/Materials | Core integrity fell below 50% 2274 | -9/Materials | Discovered new exit (range 5) 2590 | -9/Materials | Core integrity fell below 20% 2611 | -9/Materials | Destroyed 10 combat bots 2614 | -9/Materials | Lost 5 parts (1p2n2w) 3169 | -9/Materials | Build established: Scavenger-Mutant 3380 | -9/Materials | Destroyed by Y-45 Defender with Heavy Assault Rifle Last Messages --------------- 03139_ K-01 Serf collects debris. 03140_ Terminal disabled. 03142_ K-01 Serf collects debris. 03143_ G-47 Trooper destroyed. 03143_ K-01 Serf collects debris. 03154_ OSG|>Y>QMDBCQI >&W,AX CXKF O%XFUF LQ 03158_ K-01 Serf collects debris. 03171_ G-34 Mercenary destroyed. 03177_ Destroyed Hover Unit. 03177_ K-01 Serf collects debris. 03191_ System corrupted: Matter fused (-9). 03210_ Sneak attack on M-13 Machinist. 03210_ Destroyed Wheel. 03210_ Destroyed Recalibrator. 03210_ Destroyed Machine Analyzer. 03210_ M-13 Machinist destroyed. 03212_ Acquired 9 matter. 03213_ System corrupted: Component data lost. 03363_ Dropped Lgt. Treads. 03364_ Acquired 10 matter. Map ----- +----------------------------------------------------+ | #?????????# " ! # #? ?????????????? | | #??###+#??# " ## #?? ????????????? | | #?? #??##" # ##??##/###???????????? | | #? #?##""" # #####?#?????????????? | | # #?# ?????????????? | | # """ #?# = ?????????????? | | # """ #?# *%= ?????????????? | | + """ ### ## #% ######??????????????? | | #### # ### ## ##???????????????????? | | ### " # # # #????????????????????? | | # "![ # # "# #????????????????????? | | # ] # # "# ##???????????????????? | | # # # "# ##?????????????????? | | # # # T# ??????????????????? | | # + + "#? ???????>??????????? | | ### % %# # "#? ???????????????????? | | #?# [* # # "#? k ???????????????????? | | #######+## ## # #? #???????????????????? | | %%*#### # """ #? #???????????????????? | | %% % + """ #? #???????????????????? | | # """ #? #???????????????????? | | ####### *# ## ##??????????????????? | | ??????# """=**######## ###### ?????????? | | ??????#"" """*% #??????# ????????? | | ?##???#"T """! ######## Y k#????????? | | ## ####"" @ #????????? | | # ######## ####???????????????? | | # #??????### ###??????????????????? | | !== + ##"T"###????????? #????????????????????? | | === # ##"""#????????????#????????????????????? | | == # ######?????????????????????????????????? | | # ########???????????????????????????????? | | ####### # #???????????????????????????????? | | ####### # """ #???????????????????????????????? | | """ # # """ #???????????????????????????????? | | "T"=+ + """ #???????????????????????????????? | | * # # #???????????????????????????????? | | [ %[# # !#???????????????????????????????? | | ####### ########???????????????????????????????? | | #??????????????????????????????????????? | | #??????????????????????????????????????? | | #??????????????????????????????????????? | | ########??????????????????????????????????????? | | #?????????????????????????????????????????????? | | < #?????????????????????????????????????????????? | | #?????????????????????????????????????????????? | | ####?????????????????????????????????????????????? | | ?????????????????????????????????????????????????? | | ?????????????????????????????????????????????????? | | ?????????????????????????????????????????????????? | +----------------------------------------------------+ Best States ------------- Heat Dissipation 50 Energy Generation 14 Energy Capacity 280 Matter Stores 300 Matter Capacity 300 Sight Range 16 Terrain Scan Density 10 Armor Coverage 150 Evasion (%) 42 Targeting Accuracy 6 Armor Integrity Analysis 20 Recoil Reduction 3 Item Schematics ----------------- Med. Storage Unit | -10/Materials | Hacked Huge Storage Unit | -9/Materials | Hacked Robot Schematics ------------------ None Fabricated ------------ Nothing Alien Tech Used ----------------- None Achievements -------------- None Challenges ------------ None Game ------ Seed DisruptionChromaticMatter Manual? 0 Play Time 00:27:15 Cumulative 421.7 hours Start 2021.09.26 @ 14:40:38 End 2021.09.26 @ 16:23:42 Sessions 1 Manual Loads 0 Difficulty Rogue Special Mode None Game No. 403 Rogue 188 Adventurer 112 Explorer 103 Win Type - Total 30 Types 21/0/6/2/0/0/0/1/0 Lore% 84 Gallery% 90 Achievement% 76 Wizard Run 0 Options --------- ASCII 0 Keyboard 0 Movement Numpad Keybinds 0 Fullscreen 2 Font 18/TerminusBold Map View 76x50 Tactical HUD 1 Map Filters NONE Filters NONE Steam 1 RUN: 466d961f-b1b8-4ab4-8e8d-a7d93db2293e